bitfinex-derivatives/quotes_BTCF0:USTF0_20260104
["timestamp","ask_amount","ask_price","bid_price","bid_amount"]
[1767550514298,0.00792939,91298.0,91286.0,0.010959]
[1767550514604,0.09316,91297.0,91286.0,0.040959]
[1767550514799,0.00792939,91298.0,91286.0,0.040959]
[1767550515002,0.1207715,91297.0,91286.0,0.040959]
[1767550515206,0.09316,91297.0,91286.0,0.03]
[1767550515401,0.01888739,91298.0,91286.0,0.03]
[1767550515603,0.12077141,91297.0,91286.0,0.03]
[1767550515805,0.12077141,91296.0,91286.0,0.03]
[1767550516103,0.01888739,91298.0,91286.0,0.03]
[1767550516299,0.12077143,91297.0,91286.0,0.03]
[1767550516496,0.02761143,91296.0,91286.0,0.03]
[1767550516698,0.01888739,91298.0,91286.0,0.03]
[1767550516898,0.12077127,91297.0,91286.0,0.03]
[1767550517095,0.02761127,91296.0,91286.0,0.03]
[1767550517295,0.01888739,91298.0,91286.0,0.03]
[1767550517601,0.02761126,91297.0,91286.0,0.03]
[1767550517805,0.02761126,91296.0,91286.0,0.03]
[1767550518008,0.01888739,91298.0,91286.0,0.03]
[1767550518308,0.02761124,91297.0,91286.0,0.03]
[1767550518504,0.12077124,91296.0,91286.0,0.03]
[1767550518696,0.09316,91296.0,91286.0,0.03]
[1767550519401,0.010958,91297.0,91286.0,0.03]
[1767550519603,0.02761116,91296.0,91286.0,0.03]
[1767550519902,0.010958,91297.0,91286.0,0.03]
[1767550520102,0.12077114,91296.0,91286.0,0.03]
[1767550520302,0.010958,91297.0,91286.0,0.03]
[1767550520604,0.02761114,91296.0,91286.0,0.03]
[1767550520806,0.010958,91297.0,91286.0,0.03]
[1767550521004,0.12077117,91296.0,91286.0,0.03]
[1767550521203,0.09316,91296.0,91286.0,0.03]
[1767550521401,0.010958,91297.0,91286.0,0.03]
[1767550521706,0.12077112,91296.0,91286.0,0.03]
[1767550521907,0.09316,91295.0,91286.0,0.03]
[1767550522206,0.010958,91297.0,91286.0,0.03]
[1767550522407,0.12077112,91296.0,91286.0,0.03]
[1767550522605,0.010958,91297.0,91286.0,0.03]
[1767550522799,0.02761109,91296.0,91286.0,0.03]
[1767550523109,0.09316,91295.0,91286.0,0.03]
[1767550523298,0.010958,91297.0,91286.0,0.03]
[1767550523502,0.09316,91294.0,91286.0,0.03]
[1767550524909,0.010958,91297.0,91286.0,0.03]
[1767550525101,0.09316,91296.0,91286.0,0.03]
[1767550526007,0.010958,91297.0,91286.0,0.03]
[1767550526204,0.09316,91296.0,91286.0,0.03]
[1767550527003,0.09316,91295.0,91286.0,0.03]
[1767550527909,0.010958,91297.0,91286.0,0.03]
[1767550528110,0.09316,91296.0,91286.0,0.03]
[1767550528311,0.09316,91295.0,91286.0,0.03]
[1767550529009,0.010958,91297.0,91286.0,0.03]
[1767550529211,0.09316,91296.0,91286.0,0.03]
[1767550529506,0.010958,91297.0,91286.0,0.03]
[1767550529714,0.09316,91296.0,91286.0,0.03]
[1767550530811,0.104118,91296.0,91284.0,0.010959]
[1767550531011,0.104118,91296.0,91284.0,0.040959]
[1767550531411,0.010958,91295.0,91284.0,0.03]
[1767550531910,0.09316,91296.0,91283.0,0.010959]
[1767550532314,0.09316,91296.0,91283.0,0.040959]
[1767550532614,0.09316,91296.0,91283.0,0.010959]
[1767550532798,0.09316,91296.0,91283.0,0.040959]
[1767550533811,0.09316,91296.0,91284.0,0.010959]
[1767550534014,0.09316,91296.0,91284.0,0.040959]
[1767550534613,0.09316,91296.0,91285.0,0.010959]
[1767550534915,0.09316,91296.0,91285.0,0.040959]
[1767550535313,0.09316,91296.0,91285.0,0.010959]
[1767550535617,0.09316,91296.0,91285.0,0.040959]
[1767550537114,0.09316,91296.0,91285.0,0.010959]
[1767550537314,0.09316,91296.0,91285.0,0.040959]
[1767550541110,0.010958,91298.0,91285.0,0.010959]
[1767550541315,0.09316,91297.0,91285.0,0.040959]
[1767550542817,0.09316,91297.0,91285.0,0.03]
[1767550545619,0.010958,91298.0,91285.0,0.03]
[1767550545820,0.09316,91297.0,91285.0,0.03]
[1767550546222,0.09316,91297.0,91284.0,0.010959]
[1767550546518,0.09316,91297.0,91284.0,0.040959]
[1767550546815,0.010958,91298.0,91284.0,0.040959]
[1767550547024,0.09316,91296.0,91284.0,0.040959]
[1767550548723,0.010958,91298.0,91284.0,0.040959]
[1767550549020,0.09316,91297.0,91284.0,0.040959]
[1767550549411,0.010958,91298.0,91284.0,0.040959]
[1767550549714,0.09316,91297.0,91284.0,0.040959]
[1767550550021,0.09316,91296.0,91284.0,0.040959]
[1767550551124,0.010958,91298.0,91284.0,0.040959]
[1767550551422,0.09316,91297.0,91284.0,0.040959]
[1767550551626,0.09316,91297.0,91284.0,0.010959]
[1767550551823,0.09316,91297.0,91284.0,0.040959]
[1767550552428,0.010958,91298.0,91284.0,0.040959]
[1767550552625,0.167678,91298.0,91284.0,0.040959]
[1767550552826,0.09316,91297.0,91284.0,0.040959]
[1767550554422,0.010958,91296.0,91284.0,0.03]
[1767550554726,0.09316,91297.0,91284.0,0.03]
[1767550554924,0.010958,91295.0,91284.0,0.03]
[1767550562940,0.010958,91294.0,91284.0,0.03]
[1767550565038,0.010958,91296.0,91284.0,0.040959]
[1767550565940,0.02772501,91295.0,91284.0,0.040959]
[1767550566143,0.010958,91296.0,91284.0,0.040959]
[1767550566343,0.0277249,91295.0,91284.0,0.040959]
[1767550566540,0.010958,91296.0,91284.0,0.040959]
[1767550566740,0.0277249,91295.0,91284.0,0.040959]
[1767550566940,0.010958,91296.0,91284.0,0.040959]
[1767550567140,0.02772492,91295.0,91284.0,0.040959]
[1767550567442,0.010958,91296.0,91284.0,0.040959]
[1767550567643,0.02772484,91295.0,91284.0,0.03]
[1767550567834,0.010958,91296.0,91284.0,0.03]
[1767550568037,0.02772484,91295.0,91284.0,0.03]
[1767550568234,0.010958,91295.0,91284.0,0.03]
[1767550569045,0.55171363,91494.0,91289.0,0.00906172]
[1767550569046,0.010957,91301.0,91289.0,0.00906172]
[1767550569230,0.02772465,91300.0,91292.0,0.00906172]
[1767550569545,0.09316,91308.0,91292.0,0.03906172]
[1767550569546,0.01772465,91299.0,91292.0,0.03906172]
[1767550569844,0.010957,91304.0,91292.0,0.03906172]
[1767550570140,0.00674485,91312.0,91303.0,0.00906172]
[1767550570141,0.010956,91312.0,91303.0,0.00906172]
[1767550570341,0.09316,91311.0,91304.0,0.00906172]
[1767550570647,0.09316,91310.0,91304.0,0.03]
[1767550571344,0.09316,91310.0,91300.0,0.00906172]
[1767550571544,0.09316,91310.0,91300.0,0.03906172]
[1767550571739,0.09316,91310.0,91300.0,0.02001872]
[1767550572045,0.09316,91310.0,91300.0,0.05001872]
[1767550572436,0.09316,91310.0,91300.0,0.02001872]
[1767550572636,0.09316,91310.0,91300.0,0.05001872]
[1767550574152,0.09316,91310.0,91300.0,0.02001872]
[1767550574445,0.09316,91310.0,91300.0,0.00906172]
[1767550574848,0.09316,91310.0,91300.0,0.03906172]
[1767550575342,0.09316,91310.0,91300.0,0.00906172]
[1767550575647,0.09316,91310.0,91300.0,0.03906172]
[1767550576546,0.09316,91310.0,91300.0,0.03]
[1767550577248,0.09316,91310.0,91299.0,0.010957]
[1767550577448,0.09316,91310.0,91299.0,0.040957]
[1767550578049,0.09316,91310.0,91299.0,0.010957]
[1767550578446,0.09316,91310.0,91289.0,0.010959]
[1767550578447,0.00987938,91306.0,91285.0,0.02409429]
[1767550578635,0.00987938,91299.0,91281.0,0.10222172]
[1767550578950,0.00987938,91297.0,91281.0,0.03]
[1767550579249,0.010958,91291.0,91281.0,0.03]
[1767550579645,0.00987938,91297.0,91281.0,0.03]
[1767550579845,0.010958,91296.0,91281.0,0.43]
[1767550580046,0.010958,91296.0,91281.0,0.44096]
[1767550580446,0.010958,91296.0,91283.0,0.010959]
[1767550580642,0.010958,91296.0,91283.0,0.040959]
[1767550581151,0.01483322,91298.0,91285.0,0.010959]
[1767550581345,0.01483322,91298.0,91285.0,0.03]
[1767550581346,0.010958,91297.0,91285.0,0.03]
[1767550582653,0.09316,91299.0,91285.0,0.03]
[1767550583352,0.010958,91298.0,91285.0,0.03]
[1767550584651,0.010958,91296.0,91285.0,0.03]
[1767550585753,0.010958,91294.0,91281.0,0.01096]
[1767550585954,0.010958,91294.0,91281.0,0.04096]
[1767550587152,0.02083738,91298.0,91281.0,0.03]
[1767550587455,0.010959,91285.0,91281.0,0.03]
[1767550588859,0.010959,91285.0,91273.0,0.01096]
[1767550588860,0.00987938,91290.0,91272.0,0.00906172]
[1767550589061,0.00987938,91290.0,91272.0,0.03906172]
[1767550589362,0.010959,91284.0,91272.0,0.03906172]
[1767550590449,0.010959,91284.0,91272.0,0.03]
[1767550593060,0.09316,91289.0,91272.0,0.03]
[1767550593864,0.09316,91289.0,91273.0,0.00915981]
[1767550594161,0.010959,91284.0,91273.0,0.03915981]
[1767550598165,0.010959,91287.0,91273.0,0.03915981]
[1767550598363,0.010959,91286.0,91273.0,0.03915981]
[1767550599459,0.010959,91285.0,91273.0,0.03915981]
[1767550601060,0.010959,91288.0,91274.0,0.01096]
[1767550601258,0.010959,91286.0,91274.0,0.03]
[1767550604774,0.010959,91288.0,91274.0,0.03]
[1767550604966,0.010959,91288.0,91275.0,0.01096]
[1767550605161,0.010959,91288.0,91275.0,0.04096]
[1767550606366,0.010959,91288.0,91276.0,0.01096]
[1767550606568,0.09316,91289.0,91277.0,0.01096]
[1767550606769,0.09316,91289.0,91277.0,0.04096]
[1767550611466,0.09316,91289.0,91278.0,0.01096]
[1767550611667,0.09316,91289.0,91278.0,0.03096]
[1767550613070,0.09316,91289.0,91279.0,0.01096]
[1767550613375,0.09316,91289.0,91279.0,0.04096]
[1767550613871,0.01624109,91302.0,91284.0,0.00947279]
[1767550614174,0.12065501,91301.0,91286.0,0.010959]
[1767550614374,0.12065501,91301.0,91286.0,0.040959]
[1767550614375,0.09316,91301.0,91286.0,0.040959]
[1767550615075,0.1056758,91300.0,91286.0,0.040959]
[1767550615272,0.1166328,91300.0,91286.0,0.040959]
[1767550615467,0.02750096,91299.0,91286.0,0.03]
[1767550615668,0.09316,91301.0,91286.0,0.03]
[1767550615669,0.02750096,91298.0,91286.0,0.03]
[1767550615871,0.02750096,91297.0,91286.0,0.03]
[1767550616071,0.02750096,91296.0,91286.0,0.03]
[1767550616270,0.02750096,91295.0,91286.0,0.03]
[1767550616478,0.010957,91299.0,91286.0,0.03]
[1767550616667,0.02750749,91298.0,91286.0,0.03]
[1767550616868,0.02750749,91297.0,91286.0,0.03]
[1767550617068,0.02750749,91296.0,91286.0,0.03]
[1767550617263,0.02750749,91295.0,91284.0,0.03632661]
[1767550617477,0.02750749,91294.0,91284.0,0.040959]
[1767550617681,0.010957,91299.0,91284.0,0.040959]
[1767550617979,0.02751598,91298.0,91284.0,0.040959]
[1767550618179,0.02751598,91297.0,91284.0,0.040959]
[1767550618380,0.02751598,91296.0,91284.0,0.040959]
[1767550618678,0.02751598,91295.0,91284.0,0.040959]
[1767550618874,0.02751598,91294.0,91284.0,0.040959]
[1767550619077,0.010957,91299.0,91284.0,0.040959]
[1767550619280,0.0275181,91298.0,91284.0,0.040959]
[1767550619580,0.0275181,91297.0,91284.0,0.040959]
[1767550619769,0.0275181,91296.0,91284.0,0.040959]
[1767550619969,0.0275181,91295.0,91284.0,0.040959]
[1767550620267,0.0275181,91294.0,91284.0,0.040959]
[1767550620463,0.010957,91299.0,91284.0,0.040959]
[1767550620664,0.02751782,91298.0,91284.0,0.040959]
[1767550620868,0.02751782,91297.0,91284.0,0.040959]
[1767550621070,0.02751782,91296.0,91284.0,0.040959]
[1767550621280,0.02751782,91295.0,91284.0,0.040959]
[1767550621582,0.02751782,91294.0,91284.0,0.040959]
[1767550621781,0.010958,91297.0,91284.0,0.010959]
[1767550621974,0.02751934,91296.0,91284.0,0.010959]
[1767550622174,0.02751934,91295.0,91284.0,0.010959]
[1767550622374,0.02751934,91294.0,91284.0,0.010959]
[1767550622585,0.010958,91297.0,91284.0,0.010959]
[1767550622777,0.02751858,91296.0,91284.0,0.010959]
[1767550623084,0.02751858,91295.0,91284.0,0.010959]
[1767550623285,0.02751858,91294.0,91284.0,0.010959]
[1767550623475,0.010958,91297.0,91284.0,0.010959]
[1767550623669,0.02751813,91296.0,91284.0,0.010959]
[1767550623873,0.02751813,91295.0,91284.0,0.013059]
[1767550624179,0.02751813,91294.0,91284.0,0.013059]
[1767550624382,0.010958,91297.0,91284.0,0.013059]
[1767550624583,0.02751752,91296.0,91284.0,0.013059]
[1767550624878,0.02751752,91295.0,91284.0,0.043059]
[1767550625178,0.02751752,91294.0,91284.0,0.013059]
[1767550625382,0.010958,91297.0,91284.0,0.013059]
[1767550626386,0.09316,91296.0,91284.0,0.013059]
[1767550626983,0.09316,91295.0,91284.0,0.013059]
[1767550627585,0.09316,91295.0,91284.0,0.0021]
[1767550630189,0.010958,91293.0,91284.0,0.0021]
[1767550631288,0.010958,91293.0,91281.0,0.01096]
[1767550631892,0.09316,91295.0,91281.0,0.01096]
[1767550632087,0.09316,91295.0,91278.0,0.01589482]
[1767550632288,0.09316,91295.0,91278.0,0.04589482]
[1767550633189,0.09316,91295.0,91282.0,0.010959]
[1767550633382,0.104118,91295.0,91282.0,0.010959]
[1767550636690,0.104118,91295.0,91284.0,0.010959]
[1767550636891,0.09316,91295.0,91284.0,0.010959]
[1767550642198,0.02046921,91297.0,91284.0,0.010959]
[1767550642392,0.09316,91296.0,91284.0,0.010959]
[1767550642694,0.02046921,91297.0,91284.0,0.010959]
[1767550642894,0.09316,91296.0,91284.0,0.010959]
[1767550643096,0.10267121,91296.0,91284.0,0.010959]
[1767550647498,0.11362921,91296.0,91284.0,0.010959]
[1767550648094,0.00951121,91295.0,91277.0,0.00968658]
[1767550648291,0.00951121,91295.0,91277.0,0.03968658]
[1767550648490,0.00951121,91295.0,91283.0,0.010959]
[1767550651804,0.010958,91294.0,91283.0,0.010959]
[1767550652391,0.104118,91294.0,91283.0,0.010959]
[1767550653410,0.09316,91294.0,91283.0,0.010959]
[1767550654604,0.00951121,91295.0,91283.0,0.010959]
[1767550654903,0.10267121,91295.0,91283.0,0.010959]
[1767550655203,0.00951121,91295.0,91283.0,0.010959]
[1767550655505,0.02756392,91294.0,91281.0,0.01096]
[1767550655803,0.02756392,91293.0,91281.0,0.01096]
[1767550656003,0.11362921,91295.0,91281.0,0.01096]
[1767550656202,0.02761296,91294.0,91281.0,0.01096]
[1767550656397,0.11362921,91295.0,91281.0,0.01096]
[1767550656398,0.02761296,91293.0,91281.0,0.01096]
[1767550656597,0.11362921,91295.0,91281.0,0.01096]
[1767550656900,0.02761306,91294.0,91281.0,0.01096]
[1767550657100,0.02761306,91293.0,91282.0,0.010959]
[1767550657297,0.11362921,91295.0,91282.0,0.010959]
[1767550657496,0.02761316,91294.0,91282.0,0.010959]
[1767550657705,0.02761316,91293.0,91282.0,0.010959]
[1767550657902,0.11362921,91295.0,91282.0,0.010959]
[1767550658104,0.02761314,91294.0,91282.0,0.010959]
[1767550658402,0.02761314,91293.0,91282.0,0.010959]
[1767550658598,0.11362921,91295.0,91282.0,0.010959]
[1767550658799,0.02761325,91294.0,91282.0,0.010959]
[1767550659004,0.02761325,91293.0,91282.0,0.010959]
[1767550659209,0.00950224,91294.0,91282.0,0.010959]
[1767550659507,0.02761324,91293.0,91282.0,0.010959]
[1767550659703,0.00950224,91294.0,91282.0,0.010959]
[1767550659903,0.02761321,91293.0,91282.0,0.010959]
[1767550660104,0.00950224,91294.0,91282.0,0.010959]
[1767550660305,0.02761321,91293.0,91282.0,0.010959]
[1767550660495,0.00950224,91294.0,91282.0,0.010959]
[1767550660693,0.02761325,91293.0,91282.0,0.010959]
[1767550660903,0.00950224,91294.0,91282.0,0.010959]
[1767550661104,0.02761323,91293.0,91282.0,0.010959]
[1767550661301,0.00950224,91294.0,91282.0,0.010959]
[1767550661510,0.0276133,91293.0,91282.0,0.010959]
[1767550661811,0.00950224,91294.0,91282.0,0.010959]
[1767550662110,0.02761325,91293.0,91282.0,0.010959]
[1767550662417,0.00950224,91294.0,91282.0,0.010959]
[1767550662601,0.0276133,91293.0,91282.0,0.010959]
[1767550662801,0.00950224,91294.0,91282.0,0.010959]
[1767550663002,0.02761327,91293.0,91282.0,0.010959]
[1767550663201,0.00950224,91294.0,91282.0,0.010959]
[1767550663402,0.02761327,91293.0,91282.0,0.010959]
[1767550663597,0.00950224,91294.0,91282.0,0.010959]
[1767550663902,0.02761327,91293.0,91282.0,0.010959]
[1767550664098,0.00950224,91294.0,91282.0,0.010959]
[1767550664302,0.02761335,91293.0,91282.0,0.010959]
[1767550664502,0.00950224,91294.0,91282.0,0.010959]
[1767550664703,0.02761327,91293.0,91282.0,0.010959]
[1767550664904,0.00950224,91294.0,91282.0,0.010959]
[1767550665201,0.02761327,91293.0,91282.0,0.010959]
[1767550665398,0.00950224,91294.0,91282.0,0.010959]
[1767550665813,0.00950224,91294.0,91283.0,0.010959]
[1767550666204,0.00950224,91294.0,91281.0,0.01096]
[1767550667319,0.00950224,91294.0,91284.0,0.010959]
[1767550669620,0.00950224,91294.0,91285.0,0.010959]
[1767550670014,0.09316,91295.0,91285.0,0.010959]
[1767550672621,0.09316,91295.0,91283.0,0.010959]
[1767550674129,0.09316,91295.0,91284.0,0.010959]
[1767550678631,0.010958,91296.0,91284.0,0.010959]
[1767550678819,0.09316,91295.0,91284.0,0.010959]
[1767550680339,0.10301425,91295.0,91284.0,0.010959]
[1767550681041,0.00985425,91293.0,91275.0,0.01617164]
[1767550681244,0.02081225,91293.0,91280.0,0.01096]
[1767550681743,0.00985425,91292.0,91278.0,0.01096]
[1767550682039,0.00985425,91292.0,91278.0,0.04096]
[1767550682840,0.02081325,91287.0,91278.0,0.03]
[1767550683042,0.09316,91295.0,91260.0,0.38215597]
[1767550683043,0.01096,91279.0,91261.0,0.00906732]
[1767550683229,0.01799808,91279.0,91262.0,0.010962]
[1767550683543,0.00703808,91279.0,91264.0,0.010962]
[1767550683745,0.00703808,91279.0,91266.0,0.010961]
[1767550683945,0.00703808,91279.0,91266.0,0.040961]
[1767550684330,0.00769568,91274.0,91266.0,0.03]
[1767550684646,0.00769568,91273.0,91266.0,0.03]
[1767550684943,0.00769568,91272.0,91266.0,0.02230432]
[1767550685141,0.01509963,91273.0,91266.0,0.02230432]
[1767550685340,0.01509963,91278.0,91266.0,0.02230432]
[1767550686045,0.01509963,91278.0,91267.0,0.02191]
[1767550686242,0.01509963,91278.0,91267.0,0.05191]
[1767550686544,0.09316,91284.0,91268.0,0.010961]
[1767550686742,0.09316,91284.0,91268.0,0.040961]
[1767550687147,0.01509963,91283.0,91268.0,0.040961]
[1767550687554,0.11921863,91284.0,91268.0,0.040961]
[1767550687555,0.00680639,91281.0,91268.0,0.01]
[1767550687850,0.00680639,91281.0,91268.0,6.1e-07]
[1767550688043,0.010961,91271.0,91268.0,6.1e-07]
[1767550688841,0.010961,91268.0,91267.0,2e-08]
[1767550689148,0.09316,91273.0,91225.0,0.010966]
[1767550689344,0.010963,91257.0,91229.0,0.0321923]
[1767550689545,0.010961,91273.0,91235.0,0.01604334]
[1767550689754,0.33295627,91272.0,91243.0,0.01604334]
[1767550690046,0.010962,91259.0,91243.0,0.01604334]
[1767550690246,0.09326474,91258.0,91244.0,0.02191]
[1767550690550,0.09316,91257.0,91250.0,0.01604334]
[1767550690951,0.00010474,91258.0,91250.0,0.01604334]
[1767550690952,0.00010474,91258.0,91250.0,0.04604334]
[1767550691137,0.010961,91267.0,91250.0,0.04604334]
[1767550691339,0.09316,91266.0,91250.0,0.04604334]
[1767550692151,0.010961,91267.0,91250.0,0.04604334]
[1767550692449,0.09316,91266.0,91250.0,0.04604334]
[1767550693446,0.010962,91265.0,91250.0,0.04604334]
[1767550694352,0.010961,91269.0,91251.0,0.01604334]
[1767550694549,0.01080572,91298.0,91251.0,0.01604334]
[1767550694550,0.01096,91275.0,91260.0,0.01604334]
[1767550694740,0.00896438,91275.0,91260.0,0.01604334]
[1767550694945,0.010961,91273.0,91260.0,0.01604334]
[1767550695756,0.0932,91274.0,91250.0,0.10577707]
[1767550695757,0.0932,91274.0,91255.0,0.01604334]
[1767550696655,0.010961,91269.0,91255.0,0.01604334]
[1767550697753,0.010961,91267.0,91255.0,0.01604334]
[1767550698852,0.0932,91274.0,91255.0,0.01604334]
[1767550699056,0.010962,91265.0,91255.0,0.01604334]
[1767550700356,0.010961,91268.0,91255.0,0.01604334]
[1767550701861,0.010961,91266.0,91255.0,0.01604334]
[1767550702954,0.010961,91269.0,91255.0,0.01604334]
[1767550705364,0.010961,91267.0,91255.0,0.01604334]
[1767550712460,0.010962,91263.0,91255.0,0.01604334]
[1767550713273,0.010962,91263.0,91250.0,0.03707749]
[1767550713464,0.10577707,91270.0,91250.0,0.03707749]
[1767550713465,0.010962,91266.0,91251.0,0.01704717]
[1767550713665,0.010962,91266.0,91251.0,0.04704717]
[1767550714468,0.010962,91266.0,91252.0,0.010963]
[1767550714666,0.010962,91266.0,91252.0,0.02863026]
[1767550716170,0.010961,91269.0,91254.0,0.02863026]
[1767550716768,0.010961,91269.0,91255.0,0.02191]
[1767550716974,0.010961,91269.0,91256.0,0.01766726]
[1767550717162,0.010961,91269.0,91256.0,0.04766726]
[1767550717871,0.010961,91269.0,91256.0,0.01766726]
[1767550718770,0.10577707,91270.0,91255.0,0.02191]
[1767550720174,0.010961,91267.0,91255.0,0.02191]
[1767550720872,0.010961,91267.0,91255.0,0.03957726]
[1767550721575,0.010961,91267.0,91255.0,0.06957726]
[1767550722478,0.010961,91267.0,91255.0,0.03957726]
[1767550726080,0.010962,91265.0,91255.0,0.03957726]
[1767550727278,0.010961,91268.0,91255.0,0.03957726]
[1767550729268,0.104161,91268.0,91255.0,0.03957726]
[1767550730177,0.104161,91268.0,91256.0,0.01766726]
[1767550730380,0.010961,91266.0,91256.0,0.01766726]
[1767550730679,0.010962,91264.0,91256.0,0.01766726]
[1767550730978,0.010962,91264.0,91255.0,0.02191]
[1767550731578,0.0932,91268.0,91255.0,0.02191]
[1767550731977,0.10577707,91265.0,91251.0,0.01766726]
[1767550732174,0.010963,91255.0,91245.0,0.01766726]
[1767550732475,0.010963,91256.0,91242.0,0.010964]
[1767550732680,0.010964,91243.0,91239.0,0.01766726]
[1767550732886,0.010964,91246.0,91233.0,0.00924773]
[1767550733178,0.010964,91246.0,91234.0,0.00924773]
[1767550733378,0.010964,91246.0,91234.0,0.03]
[1767550733680,0.01772335,91251.0,91234.0,0.03]
[1767550734382,0.010964,91246.0,91234.0,0.03]
[1767550735975,0.010964,91249.0,91234.0,0.03]
[1767550737181,0.02868735,91249.0,91234.0,0.03]
[1767550737478,0.02868735,91247.0,91234.0,0.03]
[1767550737683,0.10577707,91252.0,91235.0,0.02691499]
[1767550737985,0.010963,91250.0,91237.0,0.02691499]
[1767550738378,0.010963,91250.0,91237.0,0.03691499]
[1767550738778,0.010964,91248.0,91237.0,0.02766726]
[1767550741993,0.12337912,91247.0,91237.0,0.01]
[1767550742284,0.01760205,91246.0,91229.0,0.0021923]
[1767550742487,0.010964,91244.0,91231.0,0.01840391]
[1767550742684,0.0932,91243.0,91232.0,0.01840391]
[1767550742887,0.0932,91243.0,91236.0,0.00928908]
[1767550743193,0.0932,91243.0,91239.0,0.01840391]
[1767550743376,0.010964,91248.0,91239.0,0.01840391]
[1767550743580,0.0932,91245.0,91239.0,0.01840391]
[1767550743976,0.0932,91249.0,91242.0,0.01840391]
[1767550744186,0.10577707,91260.0,91244.0,0.01840391]
[1767550744381,0.010963,91254.0,91244.0,0.01840391]
[1767550744583,0.0932,91253.0,91244.0,0.01840391]
[1767550745188,0.10577707,91260.0,91244.0,0.04840391]
[1767550745378,0.56992,91270.0,91251.0,0.02769299]
[1767550745379,0.12083181,91259.0,91251.0,0.02769299]
[1767550745579,0.0932,91260.0,91251.0,0.02769299]
[1767550746277,0.104162,91262.0,91251.0,0.02769299]
[1767550746491,0.02802311,91261.0,91251.0,0.05769299]
[1767550746692,0.104162,91262.0,91251.0,0.05769299]
[1767550747090,0.02802614,91261.0,91251.0,0.05769299]
[1767550747292,0.104162,91262.0,91251.0,0.02769299]
[1767550747491,0.0932,91262.0,91251.0,0.05769299]
[1767550747995,1.00970011,91277.0,91256.0,0.02769299]
[1767550747996,0.010961,91266.0,91256.0,0.02769299]
[1767550748286,0.010961,91266.0,91257.0,0.01840391]
[1767550748490,0.010962,91264.0,91253.0,0.00928908]
[1767550748693,0.010962,91264.0,91253.0,0.03928908]
[1767550749285,0.010962,91264.0,91253.0,0.00928908]
[1767550749693,0.010962,91264.0,91253.0,0.03928908]
[1767550749990,0.104161,91267.0,91253.0,0.03928908]
[1767550750697,0.104161,91267.0,91253.0,0.06865599]
[1767550750993,0.0932,91267.0,91253.0,0.06865599]
[1767550751295,0.0932,91267.0,91253.0,0.05769299]
[1767550751484,0.010961,91266.0,91253.0,0.05769299]
[1767550753800,0.0932,91267.0,91254.0,0.02769299]
[1767550754092,0.104161,91267.0,91254.0,0.05769299]
[1767550757898,0.010962,91265.0,91254.0,0.03]
[1767550758094,0.0932,91267.0,91254.0,0.03]
[1767550758289,0.010962,91264.0,91254.0,0.03]
[1767550760602,0.010962,91263.0,91254.0,0.03]
[1767550762091,0.0932,91267.0,91254.0,0.03]
[1767550762803,0.010962,91264.0,91254.0,0.03]
[1767550767908,0.010962,91260.0,91254.0,0.03]
[1767550768097,0.010962,91263.0,91254.0,0.03]
[1767550768297,0.010962,91262.0,91254.0,0.03]
[1767550775027,0.010962,91261.0,91254.0,0.03]
[1767550776423,0.01150886,91263.0,91245.0,0.11835908]
[1767550776624,0.01150886,91257.0,91245.0,0.03]
[1767550777122,0.010962,91258.0,91245.0,0.03]
[1767550778818,0.01150886,91255.0,91235.0,0.01148048]
[1767550779017,0.010964,91246.0,91235.0,0.03]
[1767550780428,0.010964,91249.0,91235.0,0.03]
[1767550782622,0.010964,91249.0,91235.0,0.04148048]
[1767550784333,0.010964,91247.0,91235.0,0.04148048]
[1767550789329,0.010964,91246.0,91235.0,0.06790875]
[1767550789534,0.010964,91246.0,91235.0,0.03]
[1767550790633,0.010963,91249.0,91235.0,0.03]
[1767550791635,0.010964,91247.0,91235.0,0.03]
[1767550792530,0.010964,91249.0,91235.0,0.03]
[1767550792737,0.010964,91249.0,91236.0,0.01148048]
[1767550792938,0.010964,91249.0,91236.0,0.04148048]
[1767550793234,0.010964,91249.0,91236.0,0.06790875]
[1767550793535,0.01150886,91248.0,91236.0,0.03]
[1767550793839,0.010965,91239.0,91229.0,0.0953923]
[1767550794039,0.010965,91239.0,91229.0,0.1253923]
[1767550794231,0.010964,91242.0,91229.0,0.1253923]
[1767550794837,0.010964,91242.0,91229.0,0.13687278]
[1767550795034,0.01150886,91248.0,91229.0,0.13687278]
[1767550795225,0.010964,91245.0,91233.0,0.03790875]
[1767550795430,0.010964,91246.0,91234.0,0.03790875]
[1767550795632,0.010964,91246.0,91235.0,0.01148048]
[1767550795939,0.010964,91246.0,91235.0,0.04148048]
[1767550800242,0.01150886,91254.0,91235.0,0.06898381]
[1767550800243,0.02247186,91254.0,91235.0,0.06898381]
[1767550800542,0.010963,91251.0,91238.0,0.03955718]
[1767550800731,0.010963,91251.0,91238.0,0.06955718]
[1767550801133,0.010963,91250.0,91238.0,0.06955718]
[1767550802442,0.01208271,91254.0,91238.0,0.03]
[1767550802645,0.010964,91242.0,91233.0,0.01205385]
[1767550802942,0.010964,91242.0,91233.0,0.04205385]
[1767550803330,0.0932,91255.0,91235.0,0.03955718]
[1767550803535,0.010964,91248.0,91236.0,0.03955718]
[1767550803737,0.010964,91248.0,91237.0,0.01205385]
[1767550803936,0.010964,91248.0,91237.0,0.04205385]
[1767550804240,0.010963,91251.0,91243.0,0.03955718]
[1767550804440,0.0932,91250.0,91243.0,0.03955718]
[1767550804948,0.104163,91250.0,91243.0,0.03955718]
[1767550806249,0.104163,91250.0,91243.0,0.02750333]
[1767550807048,0.010963,91250.0,91243.0,0.02750333]
[1767550808250,0.010964,91248.0,91243.0,0.02750333]
[1767550808946,0.0932,91252.0,91243.0,0.02750333]
[1767550809451,0.010964,91249.0,91243.0,0.02750333]
[1767550813453,0.010963,91251.0,91243.0,0.03955718]
[1767550813753,0.010963,91251.0,91243.0,0.02750333]